Workbook

Sheet ZL č.2
B1: Změnový list č. 2 - založení retenční nádrže RN1D
B5: Stavba: | D5: Zlepšení ekologického stavu řeky Bečvy v Hranicích
B7: Stavební objekt : | D7: UČ1 - retenční nádrž RN1D
B9: Objednatel: | D9: Vodovody a kanalizace Přerov, a.s.
B10: Zhotovitel: | D10: OHL ŽS, a.s., divize M - Morava
B13: Rekapitulace změnového rozpočtu (soupisu prací) a ceny stavebního objektu (bez DPH) :
B15: Cena víceprací : | E15: ='SO 40.11 - Retenční nádrž...'!M107 -> 496618.24
B17: Cena méněprací : | E17: ='SO 40.11 - Retenční nádrž...'!P107 -> 0
B19: Celkem : | E19: =SUM(E15+E17) -> 496618.24
B21: Vyjádření zúčastněných osob :
B23: Funkce | C23: Firma/Osoba | D23: Odsouhlasení | E23: Datum | F23: Podpis
B24: Zhotovitel | C24: Ing. Petr Pumprla | D24: ANO X NE
B25: Projektant | C25: Ing. Tomáš Frajt | D25: ANO X NE
B26: Správce stavby | C26: Ing. Albín Gottwald | D26: ANO X NE
B27: Objednatel | C27: Ing. Jindřich Mrva | D27: ANO X NE

Sheet SO 40.11 - Retenční nádrž...
D1: List obsahuje: | F1: 1) Krycí list soupisu | G1: 2) Rekapitulace | J1: 3) Soupis prací
D4: KRYCÍ LIST SOUPISU
D6: Stavba:
E7: ='[4]Rekapitulace stavby'!#REF! -> 
D8: Objekt:
E9: UČ 1 - RETENČNÍ NÁDRŽE RN1A, RN1B, RN1D
D10: Soupis:
E11: SO 40 - RETENČNÍ NÁDRŽ RN1D
D12: Úroveň 3:
E13: SO 40.11 - Retenční nádrž RN1D - stavební část
D15: KSO: | F15: 827 22 | I15: CC-CZ:
D16: Místo: | F16: HRANICE - DRAHOTUŠE | I16: Datum: | J16: ='[4]Rekapitulace stavby'!G8 -> 6.4.2016
D18: Zadavatel: | I18: IČ:
E19: VODOVODY A KANALIZACE PŘEROV a.s. | I19: DIČ:
D21: Uchazeč: | I21: IČ: | J21: =IF('[4]Rekapitulace stavby'!G13="Vyplň údaj","",IF('[4]Rekapitulace stavby'!G13="","",'[4]Rekapitulace stavby'!G13)) -> 46342796
E22: =IF('[4]Rekapitulace stavby'!#REF!="Vyplň údaj","",IF('[4]Rekapitulace stavby'!#REF!="","",'[4]Rekapitulace stavby'!#REF!)) ->  | I22: DIČ: | J22: =IF('[4]Rekapitulace stavby'!G14="Vyplň údaj","",IF('[4]Rekapitulace stavby'!G14="","",'[4]Rekapitulace stavby'!G14)) -> CZ46342796
D24: Projektant: | I24: IČ:
E25: JV PROJEKT VH s.r.o., BRNO | I25: DIČ:
D27: Poznámka:
D31: Cena bez DPH | J31: =ROUND(J107,2) -> 12829507.73
F33: Základ daně | I33: Sazba daně | J33: Výše daně
D34: DPH | E34: základní | F34: =ROUND(SUM(#REF!), 2) ->  | I34: 0.21 | J34: =ROUND(ROUND((SUM(#REF!)), 2)*I34, 2) -> 
E35: snížená | F35: =ROUND(SUM(#REF!), 2) ->  | I35: 0.15 | J35: =ROUND(ROUND((SUM(#REF!)), 2)*I35, 2) -> 
E36: zákl. přenesená | F36: =ROUND(SUM(#REF!), 2) ->  | I36: 0.21 | J36: 0
E37: sníž. přenesená | F37: =ROUND(SUM(#REF!), 2) ->  | I37: 0.15 | J37: 0
E38: nulová | F38: =ROUND(SUM(#REF!), 2) ->  | I38: 0 | J38: 0
D40: Cena s DPH | G40: v | H40: CZK | J40: =SUM(J31:J38) -> 
C46: REKAPITULACE ČLENĚNÍ SOUPISU PRACÍ
C48: Stavba:
E49: =E7 -> 
C50: Objekt:
E51: UČ 1 - RETENČNÍ NÁDRŽE RN1A, RN1B, RN1D
C52: Soupis:
E53: SO 40 - RETENČNÍ NÁDRŽ RN1D
C54: Úroveň 3:
E55: =E13 -> SO 40.11 - Retenční nádrž RN1D - stavební část
C57: Místo: | F57: =F16 -> HRANICE - DRAHOTUŠE | I57: Datum: | J57: =IF(J16="","",J16) -> 6.4.2016
C59: Zadavatel: | F59: =E19 -> VODOVODY A KANALIZACE PŘEROV a.s. | I59: Projektant: | J59: =E25 -> JV PROJEKT VH s.r.o., BRNO
C60: Uchazeč: | F60: =IF(E22="","",E22) -> 
C62: Kód dílu - Popis | J62: Cena celkem [CZK]
C64: Náklady soupisu celkem | J64: =J107 -> 12829507.73
D65: HSV - Práce a dodávky HSV | J65: =J108 -> 12752975.94
D66: 1 - Zemní práce | J66: =J109 -> 7243721.46
D67: 11 - Příprava území a dokončení | J67: =J110 -> 333077.97
D68: 12 - Zemní práce kanalizace | J68: =J280 -> 711345.36
D69: 13 - Zemní práce RN | J69: =J567 -> 6199298.13
D70: 2 - Zakládání | J70: =J782 -> 722195.54
D71: 3 - Svislé a kompletní konstrukce | J71: =J838 -> 2490144.17
D72: 4 - Vodorovné konstrukce | J72: =J990 -> 406356.54
D73: 5 - Komunikace | J73: =J1108 -> 303150.9
D74: 6 - Úpravy povrchů, podlahy a osazování výplní | J74: =J1167 -> 2508
D75: 8 - Trubní vedení | J75: =J1171 -> 1365810.4
D76: 9 - Ostatní konstrukce a práce-bourání | J76: =J1404 -> 167808.62
D77: 99 - Přesun hmot | J77: =J1450 -> 51280.31
D78: PSV - Práce a dodávky PSV | J78: =J1452 -> 30131.24
D79: 722 - Zdravotechnika - vnitřní vodovod | J79: =J1453 -> 28292.04
D80: 743 - Elektromontáže - hrubá montáž | J80: =J1479 -> 1839.2
D81: M - Práce a dodávky M | J81: =J1481 -> 46400.55
D82: 35-M - Montáž čerpadel, kompr.a vodoh.zař. | J82: =J1482 -> 44136.6
D83: 46-M - Zemní práce při extr.mont.pracích | J83: =J1484 -> 2263.95
C90: SOUPIS PRACÍ
C92: Stavba:
E93: ZLEPŠENÍ EKOLOGICKÉHO STAVU ŘEKY BEČVY V HRANICÍCH
C94: Objekt:
E95: UČ 1 - RETENČNÍ NÁDRŽE RN1A, RN1B, RN1D
C96: Soupis:
E97: SO 40 - RETENČNÍ NÁDRŽ RN1D
C98: Úroveň 3:
E99: =E13 -> SO 40.11 - Retenční nádrž RN1D - stavební část
C101: Místo: | F101: =F16 -> HRANICE - DRAHOTUŠE
C103: Zadavatel: | F103: =E19 -> VODOVODY A KANALIZACE PŘEROV a.s. | I103: Projektant: | J103: =E25 -> JV PROJEKT VH s.r.o., BRNO
C104: Uchazeč: | F104: OHL ŽS, a.s.
H105: SoD | K105: Vícepráce | N105: Méněpráce | Q105: Změna rozpočtu
C106: PČ | D106: Typ | E106: Kód | F106: Popis | G106: MJ | H106: Množství | I106: J.cena [CZK] | J106: Cena celkem [CZK] | K106: Množství | L106: J.cena [CZK] | M106: Cena celkem [CZK] | N106: Množství | O106: J.cena [CZK] | P106: Cena celkem [CZK] | Q106: Množství | R106: J.cena [CZK] | S106: Cena celkem [CZK]
C107: Náklady soupisu celkem | J107: =J108+J1452+J1481 -> 12829507.73 | M107: =M108+M1452+M1481 -> 496618.24 | P107: =P108+P1452+P1481 -> 0 | S107: =S108+S1452+S1481 -> 13326125.98
D108: D | E108: HSV | F108: Práce a dodávky HSV | J108: =J109+J782+J838+J990+J1108+J1167+J1171+J1404+J1450 -> 12752975.94 | M108: =M109+M782+M838+M990+M1108+M1167+M1171+M1404+M1450 -> 496618.24 | P108: =P109+P782+P838+P990+P1108+P1167+P1171+P1404+P1450 -> 0 | S108: =S109+S782+S838+S990+S1108+S1167+S1171+S1404+S1450 -> 13249594.19
D109: D | E109: 1 | F109: Zemní práce | J109: =J110+J280+J567 -> 7243721.46 | M109: =M110+M280+M567 -> 496618.24 | P109: =P110+P280+P567 -> 0 | S109: =S110+S280+S567 -> 7740339.71
D110: D | E110: 11 | F110: Příprava území a dokončení | J110: =SUM(J111:J278) -> 333077.97 | M110: =SUM(M111:M278) -> 0 | P110: =SUM(P111:P278) -> 0 | S110: =SUM(S111:S278) -> 333077.97
C111: 1 | D111: K | E111: 111201101 | F111: Odstranění křovin a stromů průměru kmene do 100 mm i s kořeny z celkové plochy do 1000 m2 | G111: m2 | H111: 30 | I111: 111.5 | J111: =ROUND(I111*H111,2) -> 3345 | L111: 111.5 | M111: =ROUND(L111*K111,2) -> 0 | O111: 111.5 | P111: =ROUND(O111*N111,2) -> 0 | Q111: 30 | R111: 111.5 | S111: =ROUND(R111*Q111,2) -> 3345
D112: VV | F112: 30,0 | H112: 30 | Q112: 30
D113: VV | E113: KERE | F113: Mezisoučet | H113: 30 | Q113: 30
C114: 2 | D114: K | E114: 112101101 | F114: Kácení stromů listnatých D kmene do 300 mm | G114: kus | H114: 1 | I114: 1114.6 | J114: =ROUND(I114*H114,2) -> 1114.6 | L114: 1114.6 | M114: =ROUND(L114*K114,2) -> 0 | O114: 1114.6 | P114: =ROUND(O114*N114,2) -> 0 | Q114: 1 | R114: 1114.6 | S114: =ROUND(R114*Q114,2) -> 1114.6
D115: VV | F115: 1 | H115: 1 | Q115: 1
D116: VV | E116: STROM30 | F116: Mezisoučet | H116: 1 | Q116: 1
C117: 3 | D117: K | E117: 112101102 | F117: Kácení stromů listnatých D kmene do 500 mm | G117: kus | H117: 5 | I117: 1393.2 | J117: =ROUND(I117*H117,2) -> 6966 | L117: 1393.2 | M117: =ROUND(L117*K117,2) -> 0 | O117: 1393.2 | P117: =ROUND(O117*N117,2) -> 0 | Q117: 5 | R117: 1393.2 | S117: =ROUND(R117*Q117,2) -> 6966
D118: VV | F118: 5 | H118: 5 | Q118: 5
D119: VV | E119: STROM50 | F119: Mezisoučet | H119: 5 | Q119: 5
C120: 4 | D120: K | E120: 112201101 | F120: Odstranění pařezů D do 300 mm | G120: kus | H120: 1 | I120: 348.3 | J120: =ROUND(I120*H120,2) -> 348.3 | L120: 348.3 | M120: =ROUND(L120*K120,2) -> 0 | O120: 348.3 | P120: =ROUND(O120*N120,2) -> 0 | Q120: 1 | R120: 348.3 | S120: =ROUND(R120*Q120,2) -> 348.3
D121: VV | F121: STROM30 | H121: 1 | Q121: 1
C122: 5 | D122: K | E122: 112201102 | F122: Odstranění pařezů D do 500 mm | G122: kus | H122: 5 | I122: 487.6 | J122: =ROUND(I122*H122,2) -> 2438 | L122: 487.6 | M122: =ROUND(L122*K122,2) -> 0 | O122: 487.6 | P122: =ROUND(O122*N122,2) -> 0 | Q122: 5 | R122: 487.6 | S122: =ROUND(R122*Q122,2) -> 2438
D123: VV | F123: STROM50 | H123: 5 | Q123: 5
C124: 6 | D124: K | E124: 162301401 | F124: Vodorovné přemístění větví stromů listnatých do 5 km D kmene do 300 mm | G124: kus | H124: 1 | I124: 69.7 | J124: =ROUND(I124*H124,2) -> 69.7 | L124: 69.7 | M124: =ROUND(L124*K124,2) -> 0 | O124: 69.7 | P124: =ROUND(O124*N124,2) -> 0 | Q124: 1 | R124: 69.7 | S124: =ROUND(R124*Q124,2) -> 69.7
D125: VV | F125: STROM30 | H125: 1 | Q125: 1
C126: 7 | D126: K | E126: 162301402 | F126: Vodorovné přemístění větví stromů listnatých do 5 km D kmene do 500 mm | G126: kus | H126: 5 | I126: 83.6 | J126: =ROUND(I126*H126,2) -> 418 | L126: 83.6 | M126: =ROUND(L126*K126,2) -> 0 | O126: 83.6 | P126: =ROUND(O126*N126,2) -> 0 | Q126: 5 | R126: 83.6 | S126: =ROUND(R126*Q126,2) -> 418
D127: VV | F127: STROM50 | H127: 5 | Q127: 5
C128: 8 | D128: K | E128: 162301411 | F128: Vodorovné přemístění kmenů stromů listnatých do 5 km D kmene do 300 mm | G128: kus | H128: 1 | I128: 69.7 | J128: =ROUND(I128*H128,2) -> 69.7 | L128: 69.7 | M128: =ROUND(L128*K128,2) -> 0 | O128: 69.7 | P128: =ROUND(O128*N128,2) -> 0 | Q128: 1 | R128: 69.7 | S128: =ROUND(R128*Q128,2) -> 69.7
D129: VV | F129: STROM30 | H129: 1 | Q129: 1
C130: 9 | D130: K | E130: 162301412 | F130: Vodorovné přemístění kmenů stromů listnatých do 5 km D kmene do 500 mm | G130: kus | H130: 5 | I130: 83.6 | J130: =ROUND(I130*H130,2) -> 418 | L130: 83.6 | M130: =ROUND(L130*K130,2) -> 0 | O130: 83.6 | P130: =ROUND(O130*N130,2) -> 0 | Q130: 5 | R130: 83.6 | S130: =ROUND(R130*Q130,2) -> 418
D131: VV | F131: STROM50 | H131: 5 | Q131: 5
C132: 10 | D132: K | E132: 162301421 | F132: Vodorovné přemístění pařezů do 5 km D do 300 mm | G132: kus | H132: 1 | I132: 69.7 | J132: =ROUND(I132*H132,2) -> 69.7 | L132: 69.7 | M132: =ROUND(L132*K132,2) -> 0 | O132: 69.7 | P132: =ROUND(O132*N132,2) -> 0 | Q132: 1 | R132: 69.7 | S132: =ROUND(R132*Q132,2) -> 69.7
D133: VV | F133: STROM30 | H133: 1 | Q133: 1
C134: 11 | D134: K | E134: 162301422 | F134: Vodorovné přemístění pařezů do 5 km D do 500 mm | G134: kus | H134: 5 | I134: 83.6 | J134: =ROUND(I134*H134,2) -> 418 | L134: 83.6 | M134: =ROUND(L134*K134,2) -> 0 | O134: 83.6 | P134: =ROUND(O134*N134,2) -> 0 | Q134: 5 | R134: 83.6 | S134: =ROUND(R134*Q134,2) -> 418
D135: VV | F135: STROM50 | H135: 5 | Q135: 5
C136: 12 | D136: K | E136: 162301501 | F136: Vodorovné přemístění křovin do 5 km D kmene do 100 mm | G136: m2 | H136: 60 | I136: 13.9 | J136: =ROUND(I136*H136,2) -> 834 | L136: 13.9 | M136: =ROUND(L136*K136,2) -> 0 | O136: 13.9 | P136: =ROUND(O136*N136,2) -> 0 | Q136: 60 | R136: 13.9 | S136: =ROUND(R136*Q136,2) -> 834
D137: VV | F137: KERE*2 | H137: 60 | Q137: 60
C138: 13 | D138: K | E138: 162301901 | F138: Příplatek k vodorovnému přemístění větví stromů listnatých D kmene do 300 mm ZKD 5 km | G138: kus | H138: 1 | I138: 62.7 | J138: =ROUND(I138*H138,2) -> 62.7 | L138: 62.7 | M138: =ROUND(L138*K138,2) -> 0 | O138: 62.7 | P138: =ROUND(O138*N138,2) -> 0 | Q138: 1 | R138: 62.7 | S138: =ROUND(R138*Q138,2) -> 62.7
D139: VV | F139: STROM30 | H139: 1 | Q139: 1
C140: 14 | D140: K | E140: 162301902 | F140: Příplatek k vodorovnému přemístění větví stromů listnatých D kmene do 500 mm ZKD 5 km | G140: kus | H140: 5 | I140: 76.7 | J140: =ROUND(I140*H140,2) -> 383.5 | L140: 76.7 | M140: =ROUND(L140*K140,2) -> 0 | O140: 76.7 | P140: =ROUND(O140*N140,2) -> 0 | Q140: 5 | R140: 76.7 | S140: =ROUND(R140*Q140,2) -> 383.5
D141: VV | F141: STROM50 | H141: 5 | Q141: 5
C142: 15 | D142: K | E142: 162301911 | F142: Příplatek k vodorovnému přemístění kmenů stromů listnatých D kmene do 300 mm ZKD 5 km | G142: kus | H142: 1 | I142: 62.7 | J142: =ROUND(I142*H142,2) -> 62.7 | L142: 62.7 | M142: =ROUND(L142*K142,2) -> 0 | O142: 62.7 | P142: =ROUND(O142*N142,2) -> 0 | Q142: 1 | R142: 62.7 | S142: =ROUND(R142*Q142,2) -> 62.7
D143: VV | F143: STROM30 | H143: 1 | Q143: 1
C144: 16 | D144: K | E144: 162301912 | F144: Příplatek k vodorovnému přemístění kmenů stromů listnatých D kmene do 500 mm ZKD 5 km | G144: kus | H144: 5 | I144: 76.7 | J144: =ROUND(I144*H144,2) -> 383.5 | L144: 76.7 | M144: =ROUND(L144*K144,2) -> 0 | O144: 76.7 | P144: =ROUND(O144*N144,2) -> 0 | Q144: 5 | R144: 76.7 | S144: =ROUND(R144*Q144,2) -> 383.5
D145: VV | F145: STROM50 | H145: 5 | Q145: 5
C146: 17 | D146: K | E146: 162301921 | F146: Příplatek k vodorovnému přemístění pařezů D 300 mm ZKD 5 km | G146: kus | H146: 1 | I146: 62.7 | J146: =ROUND(I146*H146,2) -> 62.7 | L146: 62.7 | M146: =ROUND(L146*K146,2) -> 0 | O146: 62.7 | P146: =ROUND(O146*N146,2) -> 0 | Q146: 1 | R146: 62.7 | S146: =ROUND(R146*Q146,2) -> 62.7
D147: VV | F147: STROM30 | H147: 1 | Q147: 1
C148: 18 | D148: K | E148: 162301922 | F148: Příplatek k vodorovnému přemístění pařezů D 500 mm ZKD 5 km | G148: kus | H148: 5 | I148: 76.7 | J148: =ROUND(I148*H148,2) -> 383.5 | L148: 76.7 | M148: =ROUND(L148*K148,2) -> 0 | O148: 76.7 | P148: =ROUND(O148*N148,2) -> 0 | Q148: 5 | R148: 76.7 | S148: =ROUND(R148*Q148,2) -> 383.5
D149: VV | F149: STROM50 | H149: 5 | Q149: 5
C150: 19 | D150: K | E150: 16230195 | F150: Poplatek likvidace keřů | G150: m2 | H150: 30 | I150: 27.9 | J150: =ROUND(I150*H150,2) -> 837 | L150: 27.9 | M150: =ROUND(L150*K150,2) -> 0 | O150: 27.9 | P150: =ROUND(O150*N150,2) -> 0 | Q150: 30 | R150: 27.9 | S150: =ROUND(R150*Q150,2) -> 837
D151: VV | F151: KERE | H151: 30 | Q151: 30
C152: 20 | D152: K | E152: 1623021 | F152: Poplatek za likvidaci větví, pařezů, kmenů ze stromů D300 | G152: kus | H152: 1 | I152: 27.9 | J152: =ROUND(I152*H152,2) -> 27.9 | L152: 27.9 | M152: =ROUND(L152*K152,2) -> 0 | O152: 27.9 | P152: =ROUND(O152*N152,2) -> 0 | Q152: 1 | R152: 27.9 | S152: =ROUND(R152*Q152,2) -> 27.9
D153: VV | F153: STROM30 | H153: 1 | Q153: 1
C154: 21 | D154: K | E154: 16230222 | F154: Poplatek za likvidaci pařezů +kmenů + větví ze stromů D500 | G154: kus | H154: 5 | I154: 27.9 | J154: =ROUND(I154*H154,2) -> 139.5 | L154: 27.9 | M154: =ROUND(L154*K154,2) -> 0 | O154: 27.9 | P154: =ROUND(O154*N154,2) -> 0 | Q154: 5 | R154: 27.9 | S154: =ROUND(R154*Q154,2) -> 139.5
D155: VV | F155: STROM50 | H155: 5 | Q155: 5
C156: 22 | D156: K | E156: 1131072136 | F156: Odstranění podkladu pl přes 200 m2 z kameniva těženého tl 300 mm s případným použitím kameniva k zásypu nebo odvoz na skládku a poplatek za skládku | G156: m2 | H156: 303.6 | I156: 80.8 | J156: =ROUND(I156*H156,2) -> 24530.88 | L156: 80.8 | M156: =ROUND(L156*K156,2) -> 0 | O156: 80.8 | P156: =ROUND(O156*N156,2) -> 0 | Q156: 303.6 | R156: 80.8 | S156: =ROUND(R156*Q156,2) -> 24530.88
D157: VV | F157: " provizorní panelová cesta " PANEL/3,0*(3,0+1,03*2) | H157: 303.6 | Q157: 303.6
C158: 23 | D158: K | E158: 113202111 | F158: Vytrhání obrub krajníků obrubníků stojatých | G158: m | H158: 9.05 | I158: 27.9 | J158: =ROUND(I158*H158,2) -> 252.5 | L158: 27.9 | M158: =ROUND(L158*K158,2) -> 0 | O158: 27.9 | P158: =ROUND(O158*N158,2) -> 0 | Q158: 9.05 | R158: 27.9 | S158: =ROUND(R158*Q158,2) -> 252.5
D159: VV | F159: " rušení nájezdu " ABOp | H159: 9.05 | Q159: 9.05
C160: 24 | D160: K | E160: 113107211 | F160: Odstranění podkladu pl přes 200 m2 z kameniva těženého tl 100 mm | G160: m2 | H160: 6.225 | I160: 18.2 | J160: =ROUND(I160*H160,2) -> 113.3 | L160: 18.2 | M160: =ROUND(L160*K160,2) -> 0 | O160: 18.2 | P160: =ROUND(O160*N160,2) -> 0 | Q160: 6.225 | R160: 18.2 | S160: =ROUND(R160*Q160,2) -> 113.3
D161: VV | F161: NAJEZD | H161: 6.225 | Q161: 6.225
C162: 25 | D162: K | E162: 11315311901 | F162: Odstranění podkladů provizorních zpevněných ploch - demontáž separační geotextilie s naložením na dopravní prostředek | G162: m2 | H162: 330.848 | I162: 7 | J162: =ROUND(I162*H162,2) -> 2315.94 | L162: 7 | M162: =ROUND(L162*K162,2) -> 0 | O162: 7 | P162: =ROUND(O162*N162,2) -> 0 | Q162: 330.848 | R162: 7 | S162: =ROUND(R162*Q162,2) -> 2315.94
D163: VV | F163: " provizorní panelová cesta " (3,0+1,2*2)*60,0+NAJEZD*1,1 | H163: 330.848 | Q163: 330.848
C164: 26 | D164: K | E164: 113107133 | F164: Odstranění podkladu pl do 50 m2 z betonu prostého tl 400 mm | G164: m2 | H164: 6.225 | I164: 369.2 | J164: =ROUND(I164*H164,2) -> 2298.27 | L164: 369.2 | M164: =ROUND(L164*K164,2) -> 0 | O164: 369.2 | P164: =ROUND(O164*N164,2) -> 0 | Q164: 6.225 | R164: 369.2 | S164: =ROUND(R164*Q164,2) -> 2298.27
D165: VV | F165: NAJEZD | H165: 6.225 | Q165: 6.225
C166: 27 | D166: K | E166: 11310624191 | F166: Rozebrání - provizorních - vozovek ze silničních dílců, s očištěním, naložením na dopravní prostředek, odvoz do skladu dodavatele | G166: m2 | H166: 180 | I166: 195 | J166: =ROUND(I166*H166,2) -> 35100 | L166: 195 | M166: =ROUND(L166*K166,2) -> 0 | O166: 195 | P166: =ROUND(O166*N166,2) -> 0 | Q166: 180 | R166: 195 | S166: =ROUND(R166*Q166,2) -> 35100
D167: VV | F167: " provizorní panelová cesta " PANEL | H167: 180 | Q167: 180
C168: 28 | D168: K | E168: 997013501 | F168: Odvoz suti a vybouraných hmot na skládku nebo meziskládku do 1 km se složením | G168: t | H168: 7.557 | I168: 37.2 | J168: =ROUND(I168*H168,2) -> 281.12 | L168: 37.2 | M168: =ROUND(L168*K168,2) -> 0 | O168: 37.2 | P168: =ROUND(O168*N168,2) -> 0 | Q168: 7.557 | R168: 37.2 | S168: =ROUND(R168*Q168,2) -> 281.12
C169: 29 | D169: K | E169: 997221559 | F169: Příplatek ZKD 1 km u vodorovné dopravy suti ze sypkých materiálů | G169: t | H169: 166.254 | I169: 6.2 | J169: =ROUND(I169*H169,2) -> 1030.77 | L169: 6.2 | M169: =ROUND(L169*K169,2) -> 0 | O169: 6.2 | P169: =ROUND(O169*N169,2) -> 0 | Q169: 166.254 | R169: 6.2 | S169: =ROUND(R169*Q169,2) -> 1030.77
D170: VV | F170: 7,557*22 'Přepočtené koeficientem množství | H170: 166.254 | Q170: 166.254
C171: 30 | D171: K | E171: 97909811 | F171: Poplatek za skládku suti | G171: t | H171: 7.557 | I171: 348.3 | J171: =ROUND(I171*H171,2) -> 2632.1 | L171: 348.3 | M171: =ROUND(L171*K171,2) -> 0 | O171: 348.3 | P171: =ROUND(O171*N171,2) -> 0 | Q171: 7.557 | R171: 348.3 | S171: =ROUND(R171*Q171,2) -> 2632.1
C172: 31 | D172: K | E172: 132201201 | F172: Hloubení rýh š do 2000 mm v hornině tř. 3 objemu do 100 m3 | G172: m3 | H172: 47.923 | I172: 250.8 | J172: =ROUND(I172*H172,2) -> 12019.09 | L172: 250.8 | M172: =ROUND(L172*K172,2) -> 0 | O172: 250.8 | P172: =ROUND(O172*N172,2) -> 0 | Q172: 47.923 | R172: 250.8 | S172: =ROUND(R172*Q172,2) -> 12019.09
D173: VV | F173: " PŘÍPRAVA ÚZEMÍ "
D174: VV | F174: " stoka DN800 " 1,4*3,2*23,0 | H174: 103.04 | Q174: 103.04
D175: VV | F175: " vodovod DN300 " 1,0*1,6*7,0 | H175: 11.2 | Q175: 11.2
D176: VV | E176: VYKOPpu11 | F176: Mezisoučet | H176: 114.24 | Q176: 114.24
D177: VV | F177: " stoka DN800 " -0,718*23,0 | H177: -16.514 | Q177: -16.514
D178: VV | F178: " vodovod DN300 " -PI*PI*(0,33/2)^2*7,0 | H178: -1.881 | Q178: -1.881
D179: VV | E179: VYKOPpu1 | F179: Součet | H179: 95.845 | Q179: 95.845
D180: VV | F180: " 50% "
D181: VV | F181: VYKOPpu1*0,5 | H181: 47.923 | Q181: 47.923
C182: 32 | D182: K | E182: 132201209 | F182: Příplatek za lepivost k hloubení rýh š do 2000 mm v hornině tř. 3 | G182: m3 | H182: 9.585 | I182: 12.4 | J182: =ROUND(I182*H182,2) -> 118.85 | L182: 12.4 | M182: =ROUND(L182*K182,2) -> 0 | O182: 12.4 | P182: =ROUND(O182*N182,2) -> 0 | Q182: 9.585 | R182: 12.4 | S182: =ROUND(R182*Q182,2) -> 118.85
D183: VV | F183: " 20% "
D184: VV | F184: VYKOPpu1*0,5*0,2 | H184: 9.585 | Q184: 9.585
C185: 33 | D185: K | E185: 132301202 | F185: Hloubení rýh š do 2000 mm v hornině tř. 4 objemu do 1000 m3 | G185: m3 | H185: 38.338 | I185: 250.8 | J185: =ROUND(I185*H185,2) -> 9615.17 | L185: 250.8 | M185: =ROUND(L185*K185,2) -> 0 | O185: 250.8 | P185: =ROUND(O185*N185,2) -> 0 | Q185: 38.338 | R185: 250.8 | S185: =ROUND(R185*Q185,2) -> 9615.17
D186: VV | F186: " 40% "
D187: VV | F187: VYKOPpu1*0,4 | H187: 38.338 | Q187: 38.338
C188: 34 | D188: K | E188: 132301209 | F188: Příplatek za lepivost k hloubení rýh š do 2000 mm v hornině tř. 4 | G188: m3 | H188: 7.668 | I188: 12.4 | J188: =ROUND(I188*H188,2) -> 95.08 | L188: 12.4 | M188: =ROUND(L188*K188,2) -> 0 | O188: 12.4 | P188: =ROUND(O188*N188,2) -> 0 | Q188: 7.668 | R188: 12.4 | S188: =ROUND(R188*Q188,2) -> 95.08
D189: VV | F189: " 20% "
D190: VV | F190: VYKOPpu1*0,4*0,2 | H190: 7.668 | Q190: 7.668
C191: 35 | D191: K | E191: 132401201 | F191: Hloubení rýh š do 2000 mm v hornině tř. 5 | G191: m3 | H191: 9.585 | I191: 585.1 | J191: =ROUND(I191*H191,2) -> 5608.18 | L191: 585.1 | M191: =ROUND(L191*K191,2) -> 0 | O191: 585.1 | P191: =ROUND(O191*N191,2) -> 0 | Q191: 9.585 | R191: 585.1 | S191: =ROUND(R191*Q191,2) -> 5608.18
D192: VV | F192: " 10% "
D193: VV | F193: VYKOPpu1*0,1 | H193: 9.585 | Q193: 9.585
C194: 36 | D194: K | E194: 161101101 | F194: Svislé přemístění výkopku z horniny tř. 1 až 4 hl výkopu do 2,5 m | G194: m3 | H194: 8.387 | I194: 15.5 | J194: =ROUND(I194*H194,2) -> 130 | L194: 15.5 | M194: =ROUND(L194*K194,2) -> 0 | O194: 15.5 | P194: =ROUND(O194*N194,2) -> 0 | Q194: 8.387 | R194: 15.5 | S194: =ROUND(R194*Q194,2) -> 130
D195: VV | F195: " 50% + 40 % "
D196: VV | F196: " PŘÍPRAVA ÚZEMÍ "
D197: VV | F197: " vodovod DN300 " 1,0*1,6*7,0*(0,5+0,4) | H197: 10.08 | Q197: 10.08
D198: VV | F198: " vodovod DN300 " -PI*PI*(0,33/2)^2*7,0*(0,5+0,4) | H198: -1.693 | Q198: -1.693
D199: VV | F199: Součet | H199: 8.387 | Q199: 8.387
C200: 37 | D200: K | E200: 161101151 | F200: Svislé přemístění výkopku z horniny tř. 5 až 7 hl výkopu do 2,5 m | G200: m3 | H200: 0.932 | I200: 36.1 | J200: =ROUND(I200*H200,2) -> 33.65 | L200: 36.1 | M200: =ROUND(L200*K200,2) -> 0 | O200: 36.1 | P200: =ROUND(O200*N200,2) -> 0 | Q200: 0.932 | R200: 36.1 | S200: =ROUND(R200*Q200,2) -> 33.65
D201: VV | F201: " 10% "
D202: VV | F202: " PŘÍPRAVA ÚZEMÍ "
D203: VV | F203: " vodovod DN300 " 1,0*1,6*7,0*0,1 | H203: 1.12 | Q203: 1.12
D204: VV | F204: " vodovod DN300 " -PI*PI*(0,33/2)^2*7,0*0,1 | H204: -0.188 | Q204: -0.188
D205: VV | F205: Součet | H205: 0.932 | Q205: 0.932
C206: 38 | D206: K | E206: 161101102 | F206: Svislé přemístění výkopku z horniny tř. 1 až 4 hl výkopu do 4 m | G206: m3 | H206: 77.873 | I206: 25.8 | J206: =ROUND(I206*H206,2) -> 2009.12 | L206: 25.8 | M206: =ROUND(L206*K206,2) -> 0 | O206: 25.8 | P206: =ROUND(O206*N206,2) -> 0 | Q206: 77.873 | R206: 25.8 | S206: =ROUND(R206*Q206,2) -> 2009.12
D207: VV | F207: " 50% + 40 % "
D208: VV | F208: " PŘÍPRAVA ÚZEMÍ "
D209: VV | F209: " stoka DN800 " 1,4*3,2*23,0*(0,5+0,4) | H209: 92.736 | Q209: 92.736
D210: VV | F210: " stoka DN800 " -0,718*23,0*(0,5+0,4) | H210: -14.863 | Q210: -14.863
D211: VV | F211: Součet | H211: 77.873 | Q211: 77.873
C212: 39 | D212: K | E212: 161101152 | F212: Svislé přemístění výkopku z horniny tř. 5 až 7 hl výkopu do 4 m | G212: m3 | H212: 8.653 | I212: 51.6 | J212: =ROUND(I212*H212,2) -> 446.49 | L212: 51.6 | M212: =ROUND(L212*K212,2) -> 0 | O212: 51.6 | P212: =ROUND(O212*N212,2) -> 0 | Q212: 8.653 | R212: 51.6 | S212: =ROUND(R212*Q212,2) -> 446.49
D213: VV | F213: " 10% "
D214: VV | F214: " PŘÍPRAVA ÚZEMÍ "
D215: VV | F215: " stoka DN800 " 1,4*3,2*23,0*0,1 | H215: 10.304 | Q215: 10.304
D216: VV | F216: " stoka DN800 " -0,718*23,0*0,1 | H216: -1.651 | Q216: -1.651
D217: VV | F217: Součet | H217: 8.653 | Q217: 8.653
C218: 40 | D218: K | E218: 151201102 | F218: Zřízení zátažného pažení a rozepření stěn rýh hl do 4 m | G218: m2 | H218: 181.76 | I218: 390.1 | J218: =ROUND(I218*H218,2) -> 70904.58 | L218: 390.1 | M218: =ROUND(L218*K218,2) -> 0 | O218: 390.1 | P218: =ROUND(O218*N218,2) -> 0 | Q218: 181.76 | R218: 390.1 | S218: =ROUND(R218*Q218,2) -> 70904.58
D219: VV | F219: " PŘÍPRAVA ÚZEMÍ "
D220: VV | F220: " stoka DN800 " 3,2*(23,0+1,4)*2 | H220: 156.16 | Q220: 156.16
D221: VV | F221: " vodovod DN300 " 1,6*(7,0+1,0)*2 | H221: 25.6 | Q221: 25.6
D222: VV | F222: Součet | H222: 181.76 | Q222: 181.76
C223: 41 | D223: K | E223: 151201112 | F223: Odstranění zátažného pažení a rozepření stěn rýh hl do 4 m | G223: m2 | H223: 181.76 | I223: 83.6 | J223: =ROUND(I223*H223,2) -> 15195.14 | L223: 83.6 | M223: =ROUND(L223*K223,2) -> 0 | O223: 83.6 | P223: =ROUND(O223*N223,2) -> 0 | Q223: 181.76 | R223: 83.6 | S223: =ROUND(R223*Q223,2) -> 15195.14
C224: 42 | D224: K | E224: 133201101 | F224: Hloubení šachet v hornině tř. 3 objemu do 100 m3 | G224: m3 | H224: 28.492 | I224: 292.6 | J224: =ROUND(I224*H224,2) -> 8336.76 | L224: 292.6 | M224: =ROUND(L224*K224,2) -> 0 | O224: 292.6 | P224: =ROUND(O224*N224,2) -> 0 | Q224: 28.492 | R224: 292.6 | S224: =ROUND(R224*Q224,2) -> 8336.76
D225: VV | F225: " PŘÍPRAVA ÚZEMÍ "
D226: VV | F226: " stoka DN400 " 1,1*2,7*1,0 | H226: 2.97 | Q226: 2.97
D227: VV | F227: " šachta " (2,4+1,5)*2,5*2,45 | H227: 23.888 | Q227: 23.888
D228: VV | F228: " šachta " 3,0*2,4*2,4 | H228: 17.28 | Q228: 17.28
D229: VV | F229: " vodovod DN250 " 1,0*1,6*1,0 | H229: 1.6 | Q229: 1.6
D230: VV | E230: VYKOPpu21 | F230: Mezisoučet | H230: 45.738 | Q230: 45.738
D231: VV | F231: " stoka DN400 " -0,571*1,0 | H231: -0.571 | Q231: -0.571
D232: VV | F232: " šachta " (2,4+1,5)*2,5*2,45 | H232: 23.888 | Q232: 23.888
... 1260 more rows
